Cogmind - Beta 13 @@@ ROGUE MODE // 2024.04.07 @ 07:22:25 // Winter2019/RPGLIKE Player: Bulbasornado Result: Destroyed by H-55 Commando with Gauss Rifle Performance ------------- Evolutions (2) 1000 Regions Visited (4) 800 Robots Destroyed (82) 410 Value Destroyed (2576) 2576 Prototype IDs (18) 360 Alien Tech Used (0) 0 Bonus (230) 230 TOTAL SCORE: 5376 Bonus ------- High Alert Combat Kills 230 Cogmind --------- Core Integrity 0/650 Matter 15/300 Energy 100/100 System Corruption 0% Temperature Danger (422) Movement Flying (34) Location -8/Materials Parts ------- > --- POWER (1) -------- (None) > --- PROPULSION (3) --- Flight Unit Flight Unit Flight Unit > --- UTILITY (4) ------ Subdweller Optics Experimental Sensor Array Improved Terrain Scanner Improved Light Armor Plating > --- WEAPON (3) ------- Minigun Barrage Gun Barrage Gun > --- INVENTORY (0) ---- (None) Peak State ------------ > --- POWER ------------ (None) > --- PROPULSION ------- Flight Unit Flight Unit Flight Unit > --- UTILITY ---------- Subdweller Optics Experimental Sensor Array Improved Terrain Scanner Makeshift Light Armor Plating > --- WEAPON ----------- Minigun Barrage Gun Barrage Gun > --- INVENTORY -------- (None) [Rating: 30] Favorites ----------- Power Light Ion Engine Engine Light Ion Engine Propulsion Flight Unit Treads Light Treads Wheel Wheel Flight Unit Flight Unit Utility Weapon Shielding Device Experimental Sensor Array Protection Weapon Shielding Weapon Assault Rifle Energy Gun Small Laser Ballistic Gun Assault Rifle Ballistic Cannon Light Cannon Special Weapon Welding Torch Slashing Weapon Mining Claw Build | -11 -10 -10 -10 -8 ------- Run | Yrd Mat Min Sub Mat Slots Evolved 7 | 3 2 1 1 . Power . | . . . . . Propulsion 2 | 1 1 . . . Utility 3 | 1 . 1 1 . Weapon 2 | 1 1 . . . Parts Attached 50 | 10 16 7 14 3 Power 5 | 3 1 1 . . Engine 5 | 3 1 1 . . Core . | . . . . . Reactor . | . . . . . Propulsion 7 | 3 3 . . 1 Treads 2 | 2 . . . . Leg . | . . . . . Wheel 1 | 1 . . . . Hover . | . . . . . Flight 4 | . 3 . . 1 Utility 20 | 2 3 6 8 1 Device 12 | 2 2 4 4 . Storage . | . . . . . Processor . | . . . . . Hackware . | . . . . . Protection 8 | . 1 2 4 1 Artifact . | . . . . . Weapon 18 | 2 9 . 6 1 Energy Gun 1 | 1 . . . . Energy Cannon . | . . . . . Ballistic Gun 13 | 1 5 . 6 1 Ballistic Cannon 2 | . 2 . . . Launcher . | . . . . . Special Weapon 1 | . 1 . . . Impact Weapon . | . . . . . Slashing Weapon 1 | . 1 . . . Piercing Weapon . | . . . . . Special Melee Weapon . | . . . . . Unidentified Prototypes 2 | . . 2 . . Parts Lost 1 | . . . 1 . Power . | . . . . . Propulsion . | . . . . . Utility 1 | . . . 1 . Weapon . | . . . . . Highest Loss Streak 1 | . . . 1 . To Critical Strikes . | . . . . . Average Slot Usage (%) 94 | . 99 99 88 90 Engine 7 | . 12 10 3 . Treads 3 | . 10 . . . Flight 26 | . 23 30 27 27 Device 18 | . 17 18 18 27 Protection 10 | . 8 9 12 9 Energy Gun 1 | . 4 . . . Ballistic Gun 19 | . 13 20 23 27 Ballistic Cannon 6 | . 7 10 3 . Naked Turns . | . . . . . Heaviest Build 30 | 8 12 13 30 17 Greatest Support 45 | 20 45 17 17 17 Greatest Overweight (x) 1 | . 1 . 1 . Average Overweight (x) . | . . . . . Largest Inventory Capacity . | . . . . . Average Capacity . | . . . . . Most Carried . | . . . . . Average Carried . | . . . . . Final Capacity . | . . . . . Final Carried . | . . . . . Class Distribution -------------------- 47% | Gunner 35% | Mutant 13% | Derelict-Gunner Dominant Class ---------------- Mutant | -10/Materials Gunner | -10/Mines Gunner | -10/Subcaves Hacker-Scout | -8/Materials Resources | -11 -10 -10 -10 -8 ----------- Run | Yrd Mat Min Sub Mat Matter Collected 2842 | 327 1112 240 1041 122 Remotely 331 | 52 279 . . . Salvage Created 2622 | 158 872 299 951 342 Parts 184 | 13 69 12 70 20 Haulers Intercepted 2 | . 2 . . . Recyclers Shooed . | . . . . . Parts Field Recycled . | . . . . . Retrieved Matter . | . . . . . Parts Self-Destructed 21 | . . . 21 . Prevented . | . . . . . Kills | -11 -10 -10 -10 -8 ------- Run | Yrd Mat Min Sub Mat Combat Hostiles Destroyed 61 | . 24 5 24 8 Guns 50 | . 17 4 21 8 Cannons 11 | . 7 1 3 . Classes Destroyed 12 | 2 6 . 3 1 Worker 2 | . 2 . . . Builder 1 | . 1 . . . Tunneler 6 | 4 . 2 . . Hauler 2 | . 2 . . . Recycler 5 | 1 2 . . 2 Turret 2 | . . . 2 . Watcher 3 | . 3 . . . Swarmer 12 | . 3 1 5 3 Grunt 29 | . 21 4 . 4 Sentry 1 | . . . . 1 Cobbler 2 | . . . 2 . Subdweller 19 | . . . 19 . Best Kill Streak 10 | 3 5 2 3 10 Combat Bots Only 8 | . 5 2 3 8 Max Kills in Single Turn 2 | 1 1 1 1 2 Gunslinging . | . . . . . Exploded . | . . . . . Melee . | . . . . . Uniques/NPCs Destroyed . | . . . . . Combat | -11 -10 -10 -10 -8 -------- Run | Yrd Mat Min Sub Mat Hostile Shots Fired 247 | . 75 8 115 49 Missed 90 | . 25 3 50 12 Damage Taken 2199 | . 614 65 1072 448 Core 1489 | . 484 48 650 307 Absorbed by Shields . | . . . . . Redirected to Core 1241 | . 345 29 591 276 Redirected to Shielding 122 | . 18 8 96 . Ignored by Resistances 75 | . . . 47 28 Core Remaining (%) 65 | 100 . . 31 . Volleys Fired 448 | 9 276 11 128 24 Largest 3 | 2 2 3 3 3 Hottest 88 | 60 60 75 88 81 Shots Fired 776 | 18 385 31 284 58 Gun 568 | 18 247 20 225 58 Cannon 206 | . 136 11 59 . Launcher . | . . . . . Special 2 | . 2 . . . Kinetic 699 | 9 317 31 284 58 Thermal 77 | 9 68 . . . Explosive . | . . . . . Electromagnetic . | . . . . . Robot Hit Streak 35 | 6 19 10 35 16 Robot Miss Streak 5 | 5 3 1 2 2 Penetration Max . | . . . . . Secondary Targets 8 | . 2 . 2 4 Max Gunslinging Chain 1 | . 1 . 1 1 Shots Hit Robots 367 | 10 122 19 175 41 Core Hits 132 | 5 48 10 52 17 Critical Kills 2 | . . . 2 . Critical Parts Destroyed 1 | . . . . 1 Critical Strikes 4 | . . . 3 1 Destroy 3 | . . . 2 1 Blast 1 | . . . 1 . Melee Attacks 1 | . 1 . . . Impact . | . . . . . Slashing 1 | . 1 . . . Piercing . | . . . . . Sneak Attacks . | . . . . . Combat Hostiles . | . . . . . Follow-up Attacks . | . . . . . Damage Inflicted 5618 | 123 1822 284 2581 808 Guns 4623 | 123 1268 226 2198 808 Cannons 915 | . 474 58 383 . Explosions 80 | . 80 . . . Melee . | . . . . . Ramming . | . . . . . Kinetic 5113 | 65 1375 284 2581 808 Thermal 479 | 58 421 . . . Explosive 26 | . 26 . . . Electromagnetic . | . . . . . Impact . | . . . . . Slashing . | . . . . . Piercing . | . . . . . Highest Corruption 2 | . 2 2 2 . Average Corruption 1 | . 1 2 2 . Corruption Purged . | . . . . . Corruption Blocked . | . . . . . Effects 39 | . 11 13 15 . Message Errors 10 | . 2 2 6 . Matter Fused 9 | . 2 4 3 . Heat Flow Errors 5 | . 3 1 1 . Energy Discharges 6 | . 1 2 3 . Data Loss (minor) 4 | . 1 1 2 . Data Loss (major) 3 | . . 3 . . Alerts 1 | . 1 . . . Weapon Failures 1 | . 1 . . . Overload Shots . | . . . . . Overflow Damage 13 | . 13 . . . Projectiles 13 | . 13 . . . Explosions . | . . . . . Melee . | . . . . . Knockbacks 7 | . 2 1 4 . Impact . | . . . . . Kinetic 7 | . 2 1 4 . Secondary . | . . . . . Self-Inflicted Damage 40 | . 40 . . . Shots 1 | . 1 . . . Rammed . | . . . . . Targets Rammed . | . . . . . Kicked . | . . . . . Crushed . | . . . . . Highest Temperature 422 | . 280 98 101 422 Average Temperature 47 | . 39 36 11 162 Received Heat Transfer 744 | . 303 33 228 180 Siege Activations . | . . . . . Robots Corrupted . | . . . . . Combat Hostiles . | . . . . . Parts Fried . | . . . . . Impact Corruptions . | . . . . . Robots Melted . | . . . . . Combat Hostiles . | . . . . . Parts Melted 2 | . 1 . 1 . Heat Transferred 1000 | 125 875 . . . Parts Sabotaged . | . . . . . Parts Stolen . | . . . . . Parts Stripped . | . . . . . Power Chain Reactions . | . . . . . Alert | -11 -10 -10 -10 -8 ------- Run | Yrd Mat Min Sub Mat Peak Influence 1059 | 25 1059 551 . 566 Initial 381 | . 16 381 . 231 Average 504 | 9 585 425 . 399 Maximum Alert Level 3 | . 3 2 . 2 Low Security (%) 9 | 100 10 . . . Level 1 34 | . 24 53 . 46 Level 2 34 | . 29 46 . 53 Level 3 21 | . 35 . . . Level 4 . | . . . . . Level 5 . | . . . . . High Security . | . . . . . Max Security . | . . . . . Squads Dispatched 11 | . 8 . . 3 Investigation 10 | . 8 . . 2 Extermination . | . . . . . Reinforcement 1 | . . . . 1 Assault . | . . . . . Garrison . | . . . . . Intercept . | . . . . . Searches Triggered . | . . . . . Construction Impeded . | . . . . . Haulers Reinforced . | . . . . . Active Scanning Responses . | . . . . . Cargo Convoy Interrupts . | . . . . . Stealth | -11 -10 -10 -10 -8 --------- Run | Yrd Mat Min Sub Mat Distress Signals 1 | . 1 . . . Communications Jammed . | . . . . . Distress Signals . | . . . . . Times Spotted 89 | . 30 6 42 11 Peak Tracking Total 5 | . 5 2 3 5 Tactical Retreats 3 | . . 1 2 . Traps | -11 -10 -10 -10 -8 ------- Run | Yrd Mat Min Sub Mat Traps Triggered 5 | . 5 . . . Indirectly . | . . . . . Trap Hack Attempts . | . . . . . Triggered . | . . . . . Disarmed . | . . . . . Reprogrammed . | . . . . . Reused . | . . . . . Traps Extracted . | . . . . . Installed . | . . . . . Triggered 2 | . . 1 1 . Machines | -11 -10 -10 -10 -8 ---------- Run | Yrd Mat Min Sub Mat Machines Disabled 39 | . 31 1 2 5 Max in Single Turn 2 | . 2 1 1 1 Machines Repaired . | . . . . . Machines Dismantled . | . . . . . Machines Sabotaged . | . . . . . Overloaded Fab Kills . | . . . . . Hacking | -11 -10 -10 -10 -8 --------- Run | Yrd Mat Min Sub Mat Machines Accessed 15 | . 11 1 1 2 Terminals 10 | . 8 . . 2 Fabricators . | . . . . . Repair Stations 1 | . 1 . . . Recycling Units 2 | . 2 . . . Scanalyzers . | . . . . . Garrison Access . | . . . . . Total Hacks 57 | . 38 1 9 9 Successful 32 | . 19 1 9 3 Failed 23 | . 18 . . 5 Catastrophic 3 | . 3 . . . Database Lockouts 2 | . 1 . . 1 Manual 12 | . 9 . . 3 Terminals 38 | . 29 . . 9 Fabricators . | . . . . . Repair Stations 4 | . 4 . . . Recycling Units 5 | . 5 . . . Scanalyzers . | . . . . . Garrison Access . | . . . . . Terminal Hacks 27 | . 14 1 9 3 Record 9 | . . . 8 1 Robot Analysis 4 | . 3 . . 1 Prototype ID Bank 4 | . 3 . . 1 Open Door 1 | . . 1 . . Level Access Points 1 | . 1 . . . Branch Access Points 1 | . 1 . . . Alert Level 1 | . 1 . . . Locate Traps 2 | . 2 . . . Hauler Manifests 1 | . 1 . . . Registered Prototypes 1 | . 1 . . . Zone Layout 1 | . 1 . . . Derelict Proto ID Bank 1 | . . . 1 . Fabricator Hacks . | . . . . . Repair Station Hacks . | . . . . . Recycling Unit Hacks 3 | . 3 . . . Report Inventory 2 | . 2 . . . Retrieve Matter 1 | . 1 . . . Scanalyzer . | . . . . . Garrison Access Hacks . | . . . . . Unauthorized Hacks 2 | . 2 . . . Terminals 1 | . 1 . . . Override 1 | . 1 . . . Fabricators . | . . . . . Repair Stations . | . . . . . Recycling Units 1 | . 1 . . . Tunnel 1 | . 1 . . . Scanalyzers . | . . . . . Garrison Access . | . . . . . Data Cores Recovered . | . . . . . Used . | . . . . . Hacking Detections 11 | . 9 . . 2 Full Trace Events 11 | . 9 . . 2 Feedback Events 2 | . 2 . . . Corruption 2 | . 2 . . . Feedback Blocked . | . . . . . Robot Schematics Acquired . | . . . . . Robots Built . | . . . . . Authchips . | . . . . . Time . | . . . . . Total Robot Build Rating . | . . . . . Part Schematics Acquired . | . . . . . Parts Built . | . . . . . Authchips . | . . . . . Time . | . . . . . Total Part Build Rating . | . . . . . Parts Repaired . | . . . . . Time . | . . . . . Parts Recycled . | . . . . . Recycled Matter . | . . . . . Retrieved Matter 87 | . 87 . . . Retrieved Components . | . . . . . Parts Scanalyzed . | . . . . . Part Schematics Acquired . | . . . . . Parts Damaged . | . . . . . Bothacking | -11 -10 -10 -10 -8 ------------ Run | Yrd Mat Min Sub Mat Used RIF Installer . | . . . . . Robots Hacked . | . . . . . Non-combat . | . . . . . Combat . | . . . . . Robot Hacks Applied . | . . . . . Relay Couplers Released . | . . . . . Fabnet Peak Effective % . | . . . . . Robots Rewired . | . . . . . Allies Hacked . | . . . . . Hacks Repelled . | . . . . . Allies | -11 -10 -10 -10 -8 -------- Run | Yrd Mat Min Sub Mat Total Allies . | . . . . . Largest Group . | . . . . . Highest-Rated Group . | . . . . . Highest-Rated Ally . | . . . . . Total Orders . | . . . . . Ally Attacks . | . . . . . Total Damage . | . . . . . Kills . | . . . . . Allies Corrupted . | . . . . . Allies Melted . | . . . . . Intel | -11 -10 -10 -10 -8 ------- Run | Yrd Mat Min Sub Mat Robot Analysis Total 4 | . 3 . . 1 Derelict Logs Recovered 2 | . . 1 1 . Drone Launches . | . . . . . Drone Recoveries . | . . . . . Exploration | -11 -10 -10 -10 -8 ------------- Run | Yrd Mat Min Sub Mat Turns Passed 3906 | 78 1376 778 1571 103 Spaces Moved 4928 | 60 1349 801 2631 87 Core 225 | 59 166 . . . Treads 56 | 1 55 . . . Legs . | . . . . . Wheels . | . . . . . Hover . | . . . . . Flight 4647 | . 1128 801 2631 87 Fastest Speed 34 | 50 34 34 34 34 Average Speed 38 | 51 42 34 38 34 Slowest Speed 160 | 160 160 34 114 34 Overloaded Moves . | . . . . . Propulsion Burnouts . | . . . . . Robots Hopped 11 | . 7 4 . . Cave-ins Triggered . | . . . . . Exploration Rate (%) 62 | 3 97 99 97 14 Regions Visited 4 Branch Regions 2 Pre-discovered Areas 1 | . 1 . . . Known Exits Taken 1 | . 1 . . . Unknown Exits Taken 3 | 1 . 1 1 . Scrap Searched 12 | . . 1 11 . Spaces Dug . | . . . . . Terrain Destroyed 290 | . 288 . . 2 Melee . | . . . . . Projectile 2 | . . . . 2 AOE 288 | . 288 . . . Terrain Rammed . | . . . . . Walls Destroyed . | . . . . . Machines Disabled . | . . . . . Actions | -11 -10 -10 -10 -8 --------- Run | Yrd Mat Min Sub Mat Total 6222 | 85 1751 1278 2981 127 Wait 705 | 4 74 458 162 7 Move 4902 | 59 1334 792 2630 87 Hop 11 | . 7 4 . . Pick Up . | . . . . . Fast Attach 42 | 9 15 6 12 . Attach . | . . . . . Detach . | . . . . . Swap 8 | 1 1 1 2 3 Drop 35 | 3 10 6 13 3 Fire 448 | 9 276 11 128 24 Melee 1 | . 1 . . . Ram . | . . . . . Kick . | . . . . . Crush . | . . . . . Escape Stasis . | . . . . . Rewire . | . . . . . Trap . | . . . . . Miscellaneous 70 | . 33 . 34 3 Route ------- -11/Scrapyard -10/Materials (discovered 4 exits: *Mat x3 / *Min) -10/Mines (discovered 4 exits: *Mat x2 / [*Exi] / *Sub) -10/Subcaves (discovered 3 exits: *Mat x2 / [*Rec]) -8/Materials History --------- Turn | Location | Event 4 | -11/Scrapyard | Upgraded with Propulsion slot (x1) 15 | -11/Scrapyard | Discovered new exit (range 15) 17 | -11/Scrapyard | Upgraded with Weapon slot (x1) 43 | -11/Scrapyard | Upgraded with Utility slot (x1) 79 | -11/Scrapyard | Entered Materials 130 | -10/Materials | Central database locked down 317 | -10/Materials | Build established: Mutant 429 | -10/Materials | Discovered new exit (range 4) 468 | -10/Materials | Identified exit to Mines 490 | -10/Materials | Reached level 2 581 | -10/Materials | Upgraded with Propulsion slot (x1) 710 | -10/Materials | Reached level 3 787 | -10/Materials | Discovered new exit (range 3) 951 | -10/Materials | Identified exit to Materials 1041 | -10/Materials | Reached level 4 1357 | -10/Materials | Upgraded with Weapon slot (x1) 1455 | -10/Materials | Entered Mines 1457 | -10/Mines | Reached level 5 1461 | -10/Mines | Deemed a non-threat by the Exiles lab entrance 1461 | -10/Mines | Discovered new exit (range 5) 1468 | -10/Mines | Discovered exit to Materials (range 8) 1475 | -10/Mines | Found the Drone Emporium 1477 | -10/Mines | Found Prototype Device 1477 | -10/Mines | Identified Bomb Drone Bay 1509 | -10/Mines | Learned Materials stockpile data 1533 | -10/Mines | Found a damaged Exp. Sensor Array with a note attached 1535 | -10/Mines | Found Prototype Device 1535 | -10/Mines | Identified Exp. Sensor Array 1537 | -10/Mines | Discovered exit to Materials (range 9) 1624 | -10/Mines | Upgraded with Utility slot (x1) 1664 | -10/Mines | Build established: Gunner 2220 | -10/Mines | Discovered new exit (range 5) 2233 | -10/Mines | Entered Subcaves 2257 | -10/Subcaves | Discovered new exit (range 15) 2315 | -10/Subcaves | Reached level 6 2326 | -10/Subcaves | Shifting Twisted Machinery released Mak. Laser 2342 | -10/Subcaves | Shifting Twisted Machinery released Mak. Light Armor Plating 2351 | -10/Subcaves | Upgraded with Utility slot (x1) 2371 | -10/Subcaves | A Subdweller sparked back to life 2371 | -10/Subcaves | A Subdweller sparked back to life 2371 | -10/Subcaves | A Subdweller sparked back to life 2529 | -10/Subcaves | Visited 4L-MR0's lab 2835 | -10/Subcaves | Ambushed by Subdwellers from Twisted Machinery 2921 | -10/Subcaves | A swath of the cavern ceiling suddenly collapsed 2939 | -10/Subcaves | Shifting Twisted Machinery released Sub. Beam Cannon 2958 | -10/Subcaves | Ambushed by Subdwellers from Twisted Machinery 3069 | -10/Subcaves | Shifting Twisted Machinery released Sub. Laser 3211 | -10/Subcaves | Learned Materials stockpile data 3228 | -10/Subcaves | Shifting Twisted Machinery released Shrapnel Trap 3448 | -10/Subcaves | Discovered new exit (range 15) 3473 | -10/Subcaves | Core integrity fell below 50% 3544 | -10/Subcaves | Build established: Derelict-Gunner 3549 | -10/Subcaves | A swath of the cavern ceiling suddenly collapsed 3737 | -10/Subcaves | Discovered new exit (range 8) 3804 | -10/Subcaves | Entered Materials 3805 | -8/Materials | Core integrity fell below 50% 3806 | -8/Materials | Reached level 7 3840 | -8/Materials | Central database locked down 3878 | -8/Materials | Core integrity fell below 20% 3889 | -8/Materials | Reached level 8 3907 | -8/Materials | Destroyed by H-55 Commando with Gauss Rifle Last Messages --------------- 03872_ R-06 Scavenger collects Imp. Ion Engine. 03874_ R-06 Scavenger destroyed. 03875_ U-05 Engineer destroyed. 03875_ R-06 Scavenger collects Flight Unit. 03879_ Terminal unresponsive. 03882_ Acquired 62 matter. 03883_ Acquired 34 matter. 03886_ Destroyed Datajack. 03889_ Reached level 8. 03889_ G-47 Trooper destroyed. 03889_ Switching to secondary target: G-47 Trooper. 03892_ Upgraded: Core Integrity (+50) 03892_ Upgraded: KI Resistance % (+5) 03892_ G-47 Trooper destroyed. 03894_ Slug penetrates Wall. 03895_ Destroyed Imp. Heat Sink. 03898_ G-47 Trooper destroyed. 03898_ Switching to secondary target: H-55 Commando. 03900_ Penetrated by Slug. 03906_ Acquired 26 matter. Map ----- +----------------------------------------------------+ | ?????????????????????????????????????????????????? | | ?????????????????????????????????????????????????? | | ?????????????????????????????????????????????????? | | ?????????????????????????????????????????????????? | | ?????????????????????????????????????????????????? | | ?????????????????????????????????????????????????? | | ?????????????????????????????????????????????????? | | ?????????????????????????????????????????????????? | | ?????????????????????????????????????????????????? | | ?????????????????????????????????????????????????? | | ?????????????????????????????????????????????????? | | ?????????????????????????????????????????????????? | | ?????????????????????????????????????????????????? | | ?????????????????????????????????????????????????? | | ?????????????????????????????????????????????????? | | ?????????????????????????????????????????????????? | | ?????????????????????????????????????????????????? | | ?????????????????????????????????????????????????? | | ?????????????????????????????????????????????????? | | ?????????????????######??????????????????????????? | | ????????????????? #??????????????????????????? | | ???????????????? #??????????????????????????? | | ????? ??????? """ #??????????????????????????? | | ##### #???# """"" #??????????????????????????? | | #???# """"" "#######?????]??????????????? | | #???# """"" T## @%%##???????????????????? | | #???# """ "# %#??????#????????????? | | ##??#! # h #???? ?????????????? | | ##########+### =! *####+### ?????????? | | !%![%%% *%= ????????? | | = [==* !%* ????????? | | %[%%!= = ????????? | | !!!###+######+### ???????????? | | !! # *= #??? ?????????????? | | """ """ ! #=* ""#???? #????????????? | | """ "" ]] #** T"#??????????????????? | | "" """ ]! # ""#??????????????????? | | + ! #??????????????????? | | # #?/????????????????? | | ##"""T"""# ########??????????????????? | | ########## #????????????????????????? | | #????????#**]]!!#????????????????????????? | | #????????#**]]!!#????????????????????????? | | ########????????########????????????????????????? | | ###############?????????????????????????????????? | | # [ #?????????????????????????????????? | | # #?????????????????????????????????? | | # #?????????????????????????????????? | | # " " "" " " #?????????????????????????????????? | | # """ """ """ #?????????????????????????????????? | +----------------------------------------------------+ Best States ------------- Heat Dissipation 25 Energy Generation 10 Energy Capacity 250 Matter Stores 300 Matter Capacity 300 Sight Range 21 Robot Scan Range 20 Terrain Scan Range 16 Terrain Scan Density 10 Armor Coverage 800 Resistance: KI 5 Resistance: TH 5 Weapon Shielding 33 Evasion (%) 63 Recoil Reduction 2 Offensive Hacking 15 Defensive Hacking 10 Item Schematics ----------------- None Robot Schematics ------------------ None Fabricated ------------ Nothing Alien Tech Used ----------------- None Achievements -------------- None Challenges ------------ None RPGLIKE | -11 -10 -10 -10 -8 --------- Run | Yrd Mat Min Sub Mat Levels Raised 7 | . 3 1 1 2 XP Earned 13800 | 3000 5703 1011 1115 2971 XP Spent 11925 | 1600 5100 1600 2150 1475 Upgrades 24 | 4 10 2 3 5 Propulsion Slot 2 | 1 1 . . . Utility Slot 3 | 1 . 1 1 . Weapon Slot 2 | 1 1 . . . Core Integrity 1 | . . . . 1 Mass Support 1 | 1 . . . . Ranged Accuracy 6 | . 4 1 1 . Hack Attack % 3 | . 2 . . 1 Hack Defense % 2 | . . . . 2 KI Resistance % 1 | . . . . 1 TH Resistance % 1 | . . . 1 . KI Damage % 2 | . 2 . . . Protomatter Created 772 | . 376 . 276 120 Integrity Restored 1212 | . 559 . 593 60 Core 833 | . 477 . 296 60 Parts 379 | . 82 . 297 . Protomatter Decayed 318 | . 130 . 188 . Game ------ Seed CannonVortexArray Manual? 0 Play Time 01:28:08 Cumulative 47.8 hours Start 2024.04.06 @ 19:48:00 End 2024.04.07 @ 07:22:25 Sessions 7 Manual Loads 0 Difficulty Rogue Special Mode Winter2019/RPGLIKE Game No. 20 Rogue 19 Adventurer 1 Explorer 0 Win Type - Total 0 Types 0/0/0/0/0/0/0/0/0 Lore% 27 Gallery% 28 Achievement% 20 Wizard Run 0 Options --------- Layout 0 ASCII 0 Keyboard 0 Movement Mouse Keybinds 0 Fullscreen 2 Font 18/Smallcaps Map View 76x50 Zoom Use 0% Tactical HUD 1 Map Filters NONE Filters NONE Steam 1 RUN: df4658e6-97bd-4d72-8235-769c4f9817d3